fUSD/lending_fUSD_20250226
["ID","MTS","AMOUNT","RATE_DAILY","PERIOD"]
[354601460,1740595844048,-500.0,0.00035616,14]
[354601462,1740595844059,-500.0,0.00035616,14]
[354601472,1740595844141,-559.35,0.00035616,14]
[354601474,1740595844151,-500.0,0.00035616,14]
[354601476,1740595844160,-500.0,0.00035616,14]
[354601478,1740595844170,-500.0,0.00035616,14]
[354601480,1740595844179,-1068.0,0.00035616,14]
[354601482,1740595844188,-1472.3,0.00035616,14]
[354601484,1740595844197,-1096.63,0.00035616,14]
[354601485,1740595844207,-500.0,0.00035616,14]
[354601486,1740595844216,-882.85,0.00035616,14]
[354601487,1740595844225,-1708.56,0.00035616,14]
[354601488,1740595844234,-505.62,0.00035616,14]
[354601489,1740595844243,-500.0,0.00035616,14]
[354601490,1740595844252,-481.59826749,0.00035616,14]
[354601492,1740595844262,-966.9,0.00035616,14]
[354601494,1740595844271,-1141.53,0.00035616,7]
[354601496,1740595844281,-500.0,0.00035616,14]
[354601498,1740595844291,-1382.5,0.00035616,14]
[354601500,1740595844300,-811.04,0.00035616,14]
[354601502,1740595844312,-669.94,0.00035616,14]
[354601504,1740595844321,-691.77,0.00035616,14]
[354601506,1740595844331,-500.0,0.00035616,14]
[354601508,1740595844340,-500.0,0.00035616,14]
[354601510,1740595844349,-530.0,0.00035616,14]
[354601512,1740595844359,-1910.93,0.00035616,14]
[354601514,1740595844367,-500.0,0.00035616,14]
[354601516,1740595844377,-874.49,0.00035616,14]
[354601518,1740595844387,-776.22,0.00035616,14]
[354601520,1740595844396,-811.0,0.00035616,14]
[354601522,1740595844405,-2493.41,0.00035616,14]
[354601524,1740595844415,-2617.36,0.00035616,14]
[354601526,1740595844424,-177.04148444,0.00035616,14]
[354601528,1740595844433,-1621.78,0.00035616,14]
[354601530,1740595844442,-2143.28,0.00035616,14]
[354601532,1740595844451,-500.0,0.00035616,14]
[354601534,1740595844460,-500.0,0.00035616,14]
[354601536,1740595844469,-2319.53,0.00035616,14]
[354601538,1740595844478,-500.0,0.00035616,14]
[354601540,1740595844488,-507.00001725,0.00035616,14]
[354601542,1740595844497,-500.0,0.00035616,14]
[354601544,1740595844506,-507.40318057,0.00035616,14]
[354601546,1740595844515,-529.04,0.00035616,14]
[354601548,1740595844524,-1163.2,0.00035616,14]
[354601550,1740595844534,-1841.79,0.00035616,14]
[354601552,1740595844543,-768.45,0.00035616,14]
[354601554,1740595844552,-500.0,0.00035616,14]
[354601556,1740595844563,-500.0,0.00035616,14]
[354601558,1740595844572,-500.0,0.00035616,14]
[354601560,1740595844581,-500.0,0.00035616,14]
[354601562,1740595844591,-500.0,0.00035616,14]
[354601564,1740595844599,-500.0,0.00035616,14]
[354601566,1740595844609,-500.0,0.00035616,14]
[354601568,1740595844618,-500.0,0.00035616,14]
[354601570,1740595844627,-150.0,0.00035616,14]
[354601572,1740595844636,-500.0,0.00035616,14]
[354601574,1740595844645,-500.0,0.00035616,14]
[354601576,1740595844654,-500.0,0.00035616,14]
[354601577,1740595844663,-911.1,0.00035616,14]
[354601579,1740595844673,-500.0,0.00035616,14]
[354601581,1740595844682,-602.89372897,0.00035616,14]
[354601583,1740595844692,-500.0,0.00035616,14]
[354601585,1740595844701,-500.0,0.00035616,14]
[354601587,1740595844711,-1280.98,0.00035616,14]
[354601589,1740595844720,-2143.46,0.00035616,14]
[354601591,1740595844730,-1855.75,0.00035616,14]
[354601593,1740595844739,-873.58,0.00035616,14]
[354601595,1740595844749,-500.0,0.00035616,14]
[354601597,1740595844758,-207.52964361,0.00035616,14]
[354601599,1740595844768,-939.46,0.00035616,14]
[354601601,1740595844778,-500.0,0.00035616,14]
[354601603,1740595844787,-500.0,0.00035616,14]
[354601605,1740595844799,-546.07564109,0.00035616,14]
[354601607,1740595844810,-500.0,0.00035616,14]
[354601609,1740595844819,-500.0,0.00035616,14]
[354601611,1740595844830,-2000.0,0.00035616,120]
[354601613,1740595844840,-500.0,0.00035616,14]
[354601615,1740595844850,-1902.32,0.00035616,14]
[354601617,1740595844859,-500.0,0.00035616,14]
[354601619,1740595844869,-506.19015138,0.00035616,14]
[354601621,1740595844879,-1142.01,0.00035616,14]
[354601623,1740595844888,-938.37,0.00035616,14]
[354601625,1740595844898,-3660.72,0.00035616,14]
[354601627,1740595844908,-800.79,0.00035616,14]
[354601629,1740595844917,-2507.28,0.00035616,2]
[354601631,1740595844928,-512.47,0.00035616,14]
[354601633,1740595844939,-500.0,0.00035616,14]
[354601635,1740595844949,-1981.71,0.00035616,14]
[354601637,1740595844960,-1824.5,0.00035616,14]
[354601639,1740595844970,-731.9,0.00035616,14]
[354601641,1740595844982,-1824.5,0.00035616,14]
[354601643,1740595844992,-500.0,0.00035616,14]
[354601644,1740595845002,-1824.5,0.00035616,14]
[354601647,1740595845013,-1276.51,0.00035616,14]
[354601649,1740595845022,-708.24,0.00035616,14]
[354601651,1740595845033,-500.0,0.00035616,14]
[354601653,1740595845043,-2733.74,0.00035616,14]
[354601654,1740595845053,-2252.01,0.00035616,14]
[354601656,1740595845064,-1022.27,0.00035616,14]
[354601658,1740595845074,-891.14,0.00035616,14]
[354601661,1740595845084,-500.0,0.00035616,14]
[354601662,1740595845093,-500.0,0.00035616,14]
[354601664,1740595845103,-642.98,0.00035616,14]
[354601666,1740595845113,-552.36,0.00035616,14]
[354601668,1740595845123,-630.12,0.00035616,14]
[354601670,1740595845132,-500.0,0.00035616,14]
[354601672,1740595845142,-500.0,0.00035616,14]
[354601674,1740595845151,-1991.31,0.00035616,14]
[354601676,1740595845161,-500.0,0.00035616,14]
[354601678,1740595845171,-1294.07,0.00035616,14]
[354601680,1740595845181,-500.52085353,0.00035616,14]
[354601682,1740595845191,-1853.21,0.00035616,14]
[354601684,1740595845201,-630.96,0.00035616,14]
[354601686,1740595845211,-1573.28,0.00035616,14]
[354601688,1740595845221,-2426.57,0.00035616,14]
[354601690,1740595845230,-500.0,0.00035616,14]
[354601692,1740595845240,-1150.32,0.00035616,14]
[354601694,1740595845250,-446.55962784,0.00035616,14]
[354601696,1740595845260,-2490.78,0.00035616,14]
[354601698,1740595845270,-715.02,0.00035616,14]
[354601700,1740595845280,-500.0,0.00035616,14]
[354601702,1740595845289,-3484.94,0.00035616,14]
[354601704,1740595845299,-2771.33,0.00035616,14]
[354601706,1740595845308,-500.0,0.00035616,14]
[354601708,1740595845320,-500.0,0.00035616,14]
[354601710,1740595845329,-575.60471392,0.00035616,14]
[354601712,1740595845339,-364.73730841,0.00035616,14]
[354601714,1740595845349,-500.0,0.00035616,14]
[354601716,1740595845358,-1596.62,0.00035616,14]
[354601718,1740595845368,-1876.78,0.00035616,14]
[354601720,1740595845378,-1560.4,0.00035616,14]
[354601722,1740595845387,-500.0,0.00035616,14]
[354601724,1740595845397,-1676.26,0.00035616,14]
[354601726,1740595845407,-1315.3938,0.00035616,21]
[354601728,1740595845417,-500.0,0.00035616,14]
[354601730,1740595845426,-500.0,0.00035616,14]
[354601732,1740595845435,-6192.85,0.00035616,14]
[354601734,1740595845444,-647.32,0.00035616,14]
[354601736,1740595845454,-181.87275608,0.00035616,14]
[354601738,1740595845463,-1726.29,0.00035616,14]
[354601740,1740595845472,-2725.95,0.00035616,14]
[354601742,1740595845482,-563.72,0.00035616,14]
[354601744,1740595845491,-944.42,0.00035616,14]
[354601746,1740595845500,-500.0,0.00035616,14]
[354601748,1740595845510,-500.0,0.00035616,14]
[354601750,1740595845519,-3837.57,0.00035616,14]
[354601752,1740595845529,-1361.35,0.00035616,14]
[354601754,1740595845538,-1302.57,0.00035616,14]
[354601756,1740595845547,-688.53,0.00035616,14]
[354601758,1740595845556,-11693.75,0.00035616,14]
[354601760,1740595845568,-2812.52,0.00035616,14]
[354601762,1740595845577,-861.86,0.00035616,14]
[354601764,1740595845586,-3063.11,0.00035616,14]
[354601766,1740595845595,-1132.99,0.00035616,14]
[354601768,1740595845605,-500.0,0.00035616,14]
[354601770,1740595845614,-2332.02,0.00035616,14]
[354601772,1740595845624,-500.0,0.00035616,14]
[354601774,1740595845634,-500.0,0.00035616,14]
[354601776,1740595845643,-3032.5,0.00035616,14]
[354601778,1740595845653,-1403.52,0.00035616,14]
[354601780,1740595845663,-2514.92,0.00035616,14]
[354601782,1740595845672,-500.0,0.00035616,14]
[354601784,1740595845681,-500.0,0.00035616,14]
[354601786,1740595845691,-840.17,0.00035616,14]
[354601788,1740595845700,-528.99645323,0.00035616,14]
[354601790,1740595845709,-500.0,0.00035616,7]
[354601792,1740595845718,-3285.15,0.00035616,14]
[354601794,1740595845727,-2864.92,0.00035616,14]
[354601796,1740595845736,-1217.25,0.00035616,14]
[354601798,1740595845746,-829.58,0.00035616,14]
[354601800,1740595845755,-500.0,0.00035616,14]
[354601802,1740595845764,-521.32,0.00035616,14]
[354601803,1740595845773,-1548.49,0.00035616,14]
[354601805,1740595845782,-502.81291931,0.00035616,14]
[354601807,1740595845790,-158.96985337,0.00035616,14]
[354601809,1740595845799,-500.0,0.00035616,14]
[354601811,1740595845809,-1797.4,0.00035616,14]
[354601813,1740595845819,-500.0,0.00035616,14]
[354601815,1740595845828,-3783.79,0.00035616,14]
[354601817,1740595845839,-500.0,0.00035616,14]
[354601819,1740595845850,-504.79732923,0.00035616,14]
[354601821,1740595845859,-1141.09,0.00035616,14]
[354601823,1740595845868,-577.91,0.00035616,14]
[354601826,1740595845878,-500.0,0.00035616,14]
[354601829,1740595845887,-6297.9,0.00035616,14]
[354601832,1740595845896,-2194.13,0.00035616,14]
[354601835,1740595845906,-1289.77,0.00035616,14]
[354601838,1740595845915,-2625.14,0.00035616,14]
[354601841,1740595845925,-564.43,0.00035616,14]
[354601844,1740595845943,-2622.68,0.00035616,14]
[354601846,1740595845952,-2112.2,0.00035616,14]
[354601849,1740595845961,-3149.85,0.00035616,14]
[354601852,1740595845971,-806.4,0.00035616,14]
[354601855,1740595845982,-2632.85,0.00035616,14]
[354601859,1740595845992,-500.0,0.00035616,14]
[354601862,1740595846002,-3833.32,0.00035616,14]
[354601865,1740595846011,-505.12891081,0.00035616,14]
[354601869,1740595846021,-1648.8,0.00035616,14]
[354601871,1740595846031,-500.0,0.00035616,14]
[354601874,1740595846040,-500.0,0.00035616,14]
[354601877,1740595846050,-5487.93,0.00035616,14]
[354601879,1740595846062,-500.0,0.00035616,14]
[354601882,1740595846071,-518.03159932,0.00035616,14]
[354601884,1740595846081,-2311.59,0.00035616,14]
[354601886,1740595846090,-974.58,0.00035616,14]
[354601888,1740595846099,-526.2753987,0.00035616,14]
[354601890,1740595846108,-565.43,0.00035616,14]
[354601892,1740595846118,-1343.0,0.00035616,14]
[354601894,1740595846127,-500.0,0.00035616,14]
[354601896,1740595846136,-11841.49,0.00035616,14]
[354601898,1740595846145,-500.0,0.00035616,14]
[354601900,1740595846155,-500.0,0.00035616,14]
[354601901,1740595846164,-567.13,0.00035616,14]
[354601903,1740595846173,-500.0,0.00035616,14]
[354601905,1740595846182,-3413.54,0.00035616,14]
[354601907,1740595846192,-500.0,0.00035616,14]
[354601909,1740595846201,-1833.27,0.00035616,14]
[354601911,1740595846210,-500.0,0.00035616,14]
[354601913,1740595846220,-995.26,0.00035616,14]
[354601915,1740595846229,-3517.26,0.00035616,14]
[354601917,1740595846239,-7439.57,0.00035616,14]
[354601919,1740595846248,-1238.69,0.00035616,14]
[354601921,1740595846257,-1700.63,0.00035616,14]
[354601923,1740595846266,-2752.94,0.00035616,14]
[354601925,1740595846275,-4507.25,0.00035616,14]
[354601927,1740595846285,-200.0,0.00035616,7]
[354601929,1740595846294,-1862.26,0.00035616,14]
[354601931,1740595846303,-500.0,0.00035616,14]
[354601933,1740595846313,-1154.79,0.00035616,14]
[354601935,1740595846323,-639.34,0.00035616,14]
[354601937,1740595846332,-500.0,0.00035616,14]
[354601939,1740595846341,-1572.85,0.00035616,14]
[354601941,1740595846350,-3421.4,0.00035616,14]
[354601943,1740595846360,-500.0,0.00035616,14]
[354601945,1740595846369,-1778.87,0.00035616,14]
[354601947,1740595846378,-1616.96,0.00035616,14]
[354601948,1740595846387,-696.16,0.00035616,14]
[354601950,1740595846397,-500.0,0.00035616,14]
[354601952,1740595846405,-9182.73,0.00035616,14]
[354601954,1740595846415,-500.0,0.00035616,14]
[354601956,1740595846424,-683.41,0.00035616,14]
[354601958,1740595846433,-682.72,0.00035616,14]
[354601960,1740595846444,-6709.93,0.00035616,14]
[354601962,1740595846453,-4316.65,0.00035616,14]
[354601964,1740595846462,-682.23,0.00035616,14]
[354601966,1740595846471,-511.69943134,0.00035616,14]
[354601968,1740595846480,-546.58,0.00035616,14]
[354601970,1740595846489,-876.15,0.00035616,14]
[354601972,1740595846498,-3317.95,0.00035616,14]
[354601974,1740595846507,-500.0,0.00035616,14]
[354601976,1740595846516,-1576.59,0.00035616,14]
[354601978,1740595846525,-604.02,0.00035616,14]
[354601979,1740595846536,-500.0,0.00035616,14]
[354601981,1740595846547,-1898.38,0.00035616,14]
[354601983,1740595846556,-749.16,0.00035616,14]
[354601985,1740595846566,-3418.9,0.00035616,14]
[354601987,1740595846575,-500.0,0.00035616,14]
[354601989,1740595846584,-228.80162109,0.00035616,14]
[354601991,1740595846593,-2938.03,0.00035616,14]
[354601993,1740595846603,-1228.02,0.00035616,14]
[354601995,1740595846612,-518.27361333,0.00035616,14]
[354601997,1740595846622,-500.0,0.00035616,14]
[354601999,1740595846631,-500.0,0.00035616,14]
[354602001,1740595846641,-500.0,0.00035616,14]
[354602003,1740595846650,-287.92107377,0.00035616,14]
[354602005,1740595846659,-2258.95,0.00035616,14]
[354602007,1740595846668,-1052.77,0.00035616,14]
[354602009,1740595846677,-500.0,0.00035616,14]
[354602011,1740595846686,-500.0,0.00035616,14]
[354602013,1740595846696,-500.0,0.00035616,14]
[354602015,1740595846706,-932.43,0.00035616,14]
[354602017,1740595846715,-1087.18,0.00035616,14]
[354602019,1740595846724,-2000.0,0.00035616,30]
[354602021,1740595846733,-500.0,0.00035616,14]
[354602023,1740595846743,-3770.5,0.00035616,14]
[354602024,1740595846752,-500.0,0.00035616,14]
[354602026,1740595846761,-4443.37,0.00035616,14]
[354602028,1740595846770,-418.49754807,0.00035616,14]
[354602030,1740595846780,-841.55,0.00035616,14]
[354602032,1740595846789,-4370.98,0.00035616,14]
[354602034,1740595846798,-2630.39,0.00035616,14]
[354602036,1740595846807,-2630.39,0.00035616,14]
[354602038,1740595846818,-500.0,0.00035616,14]
[354602040,1740595846827,-2630.39,0.00035616,14]
[354602042,1740595846836,-1077.8,0.00035616,14]
[354602044,1740595846846,-2630.39,0.00035616,14]
[354602047,1740595846855,-1662.55,0.00035616,14]
[354602049,1740595846865,-2630.39,0.00035616,14]
[354602051,1740595846874,-1684.75,0.00035616,14]
[354602053,1740595846884,-500.0,0.00035616,14]
[354602055,1740595846893,-732.3,0.00035616,14]
[354602057,1740595846902,-669.42,0.00035616,14]
[354602059,1740595846911,-2153.43,0.00035616,14]
[354602061,1740595846920,-2455.03,0.00035616,14]
[354602063,1740595846930,-500.0,0.00035616,14]
[354602065,1740595846940,-555.94,0.00035616,14]
[354602067,1740595846951,-500.0,0.00035616,14]
[354602069,1740595846962,-8707.22,0.00035616,14]
[354602071,1740595846971,-181.60955483,0.00035616,2]
[354602073,1740595846981,-508.9574144,0.00035616,14]
[354602075,1740595846991,-1962.86,0.00035616,14]
[354602076,1740595847000,-661.77,0.00035616,14]
[354602078,1740595847010,-500.0,0.00035616,14]
[354602080,1740595847018,-200.0,0.00035616,2]
[354602082,1740595847029,-14121.36,0.00035616,14]
[354602084,1740595847038,-1465.58,0.00035616,14]
[354602086,1740595847047,-500.0,0.00035616,14]
[354602088,1740595847056,-502.63444402,0.00035616,14]
[354602090,1740595847067,-500.0,0.00035616,14]
[354602092,1740595847076,-3029.66,0.00035616,14]
[354602094,1740595847085,-500.0,0.00035616,14]
[354602096,1740595847094,-500.0,0.00035616,2]
[354602098,1740595847103,-150.0,0.00035616,2]
[354602100,1740595847112,-3158.55,0.00035616,14]
[354602101,1740595847121,-500.0,0.00035616,14]
[354602104,1740595847131,-500.0,0.00035616,2]
[354602105,1740595847140,-677.06,0.00035616,14]
[354602107,1740595847150,-1124.82,0.00035616,14]
[354602109,1740595847159,-1234.59,0.00035616,14]
[354602111,1740595847168,-500.0,0.00035616,14]
[354602113,1740595847178,-1087.29,0.00035616,14]
[354602115,1740595847187,-1184.83,0.00035616,14]
[354602117,1740595847196,-500.0,0.00035616,14]
[354602119,1740595847205,-766.23,0.00035616,14]
[354602121,1740595847215,-527.05,0.00035616,14]
[354602123,1740595847224,-500.0,0.00035616,14]
[354602125,1740595847235,-1001.3,0.00035616,14]
[354602127,1740595847244,-617.69,0.00035616,14]
[354602129,1740595847253,-1731.67,0.00035616,14]
[354602131,1740595847263,-150.0,0.00035616,2]
[354602133,1740595847272,-2099.68,0.00035616,14]
[354602135,1740595847281,-3138.97,0.00035616,14]
[354602137,1740595847291,-2142.0,0.00035616,14]
[354602138,1740595847300,-500.0,0.00035616,7]
[354602140,1740595847309,-1244.63,0.00035616,14]
[354602142,1740595847320,-850.11,0.00035616,14]
[354602144,1740595847329,-1394.32,0.00035616,14]
[354602146,1740595847339,-1232.0,0.00035616,14]
[354602148,1740595847347,-3802.94,0.00035616,14]
[354602150,1740595847357,-1256.63,0.00035616,14]
[354602152,1740595847366,-1086.92,0.00035616,14]
[354602154,1740595847375,-1776.24,0.00035616,14]
[354602156,1740595847384,-500.0,0.00035616,14]
[354602158,1740595847392,-772.03,0.00035616,14]
[354602160,1740595847407,-500.0,0.00035616,14]
[354602162,1740595847417,-1264.32,0.00035616,14]
[354602164,1740595847426,-465.8,0.00035616,2]
[354602166,1740595847438,-500.0,0.00035616,14]
[354602168,1740595847447,-773.62,0.00035616,14]
[354602170,1740595847457,-500.0,0.00035616,14]
[354602172,1740595847466,-1317.17,0.00035616,14]
[354602174,1740595847476,-666.36,0.00035616,14]
[354602176,1740595847486,-500.0,0.00035616,14]
[354602178,1740595847495,-2961.3,0.00035616,14]
[354602180,1740595847505,-4383.06,0.00035616,14]
[354602182,1740595847514,-1507.85,0.00035616,14]
[354602184,1740595847523,-500.0,0.00035616,14]
[354602186,1740595847532,-500.0,0.00035616,14]
[354602188,1740595847542,-1388.89,0.00035616,14]
[354602190,1740595847551,-556.93,0.00035616,14]
[354602192,1740595847561,-3155.81,0.00035616,14]
[354602194,1740595847571,-500.0,0.00035616,14]
[354602196,1740595847580,-561.98,0.00035616,14]
[354602198,1740595847589,-1331.80299311,0.00035637,2]
[354602199,1740595847598,-214.26,0.0003565,2]
[354602201,1740595847607,-155.78767783,0.00035673,5]
[354602203,1740595847617,-343.01067089,0.00035681,2]
[354602205,1740595847626,-317.24269666,0.0003569,7]
[354602207,1740595847635,-1800.0,0.000357,13]
[354602209,1740595847645,-1331.80299311,0.00035759,2]
[354602211,1740595847654,-183.23504703,0.00035789,8]
[354602213,1740595847663,-500.0,0.00035789,2]
[354602215,1740595847672,-291.57052642,0.0003579,2]
[354602217,1740595847683,-278.9276,0.0003579,2]
[354602219,1740595847692,-1682.0,0.000358,7]
[354602221,1740595847701,-2400.0,0.000358,13]
[354602223,1740595847711,-343.01067089,0.00035814,2]
[354602225,1740595847721,-214.26,0.00035831,2]
[354602227,1740595847731,-500.0,0.00035873,5]
[354602229,1740595847741,-500.0,0.00035873,5]
[354602231,1740595847751,-500.0,0.00035873,5]
[354602233,1740595847761,-501.72783223,0.00035873,5]
[354602236,1740595847771,-500.0,0.00035873,5]
[354602237,1740595847780,-500.0,0.00035873,5]
[354602238,1740595847790,-1331.80299311,0.00035881,2]
[354602239,1740595847800,-1824.5,0.00035888,14]
[354602240,1740595847810,-300.0,0.00035889,10]
[354602241,1740595847820,-400.6355094,0.00035889,14]
[354602242,1740595847830,-3225.12,0.00035889,14]
[354602243,1740595847840,-3225.12,0.00035889,14]
[354602244,1740595847850,-3225.12,0.00035889,14]
[354602245,1740595847859,-3225.12,0.00035889,14]
[354602246,1740595847869,-1824.5,0.00035889,14]
[354602247,1740595847878,-1824.5,0.00035889,14]
[354602248,1740595847888,-1824.5,0.00035889,14]
[354602249,1740595847898,-2630.39,0.00035889,14]
[354602250,1740595847908,-2630.39,0.00035889,14]
[354602251,1740595847917,-2630.39,0.00035889,14]
[354602252,1740595847927,-150.0,0.00035889,30]
[354602254,1740595847941,-2620.0,0.0003589,5]
[354602256,1740595847951,-500.0,0.0003589,14]
[354602258,1740595847960,-500.0,0.0003589,14]
[354602260,1740595847971,-502.02533444,0.0003589,14]
[354602262,1740595847983,-269.86126748,0.0003589,14]
[354602264,1740595847993,-500.0,0.0003589,14]
[354602266,1740595848003,-500.0,0.0003589,14]
[354602268,1740595848014,-500.0,0.0003589,2]
[354602270,1740595848025,-500.0,0.0003589,2]
[354602273,1740595848035,-500.0,0.0003589,14]
[354602275,1740595848046,-2142.0,0.0003589,14]
[354602277,1740595848057,-1232.0,0.0003589,14]
[354602279,1740595848069,-163.488149,0.0003589,7]
[354602281,1740595848079,-151.0,0.0003589,7]
[354602283,1740595848089,-151.0,0.0003589,7]
[354602285,1740595848100,-151.0,0.0003589,7]
[354602287,1740595848110,-151.0,0.0003589,7]
[354602289,1740595848120,-151.0,0.0003589,7]
[354602291,1740595848131,-151.0,0.0003589,7]
[354602293,1740595848141,-174.768164,0.0003589,7]
[354602296,1740595848152,-174.768164,0.0003589,7]
[354602298,1740595848163,-174.768164,0.0003589,7]
[354602300,1740595848173,-174.768164,0.0003589,7]
[354602302,1740595848183,-174.768164,0.0003589,7]
[354602304,1740595848192,-174.768164,0.0003589,7]
[354602306,1740595848203,-174.768164,0.0003589,7]
[354602308,1740595848212,-174.768164,0.0003589,7]
[354602310,1740595848222,-530.37881878,0.0003589,14]
[354602312,1740595848233,-423.69326434,0.0003589,2]
[354602314,1740595848243,-500.0,0.0003589,14]
[354602316,1740595848254,-500.0,0.0003589,14]
[354602318,1740595848265,-317.20619989,0.0003589,14]
[354602320,1740595848275,-500.0,0.0003589,14]
[354602322,1740595848285,-808.73,0.0003589,14]
[354602324,1740595848295,-672.636069,0.0003589,14]
[354602326,1740595848305,-500.0,0.0003589,14]
[354602328,1740595848317,-610.8,0.0003589,14]
[354602330,1740595848327,-1501.590989,0.0003589,14]
[354602332,1740595848337,-676.71,0.0003589,14]
[354602335,1740595848347,-500.0,0.0003589,14]
[354602337,1740595848357,-870.39,0.0003589,14]
[354602339,1740595848367,-500.0,0.0003589,14]
[354602341,1740595848378,-1090.2,0.0003589,14]
[354602343,1740595848388,-500.0,0.0003589,14]
[354602345,1740595848398,-1069.27,0.0003589,14]
[354602347,1740595848408,-814.89,0.0003589,14]
[354602349,1740595848418,-500.0,0.0003589,14]
[354602351,1740595848429,-500.0,0.0003589,14]
[354602353,1740595848439,-1150.39,0.0003589,14]
[354602355,1740595848449,-500.0,0.0003589,14]
[354602357,1740595848459,-500.0,0.0003589,14]
[354602359,1740595848470,-500.0,0.0003589,14]
[354602362,1740595848480,-500.0,0.0003589,14]
[354602363,1740595848490,-500.0,0.0003589,14]
[354602366,1740595848499,-701.36,0.0003589,14]
[354602368,1740595848509,-500.0,0.0003589,14]
[354602370,1740595848519,-841.82,0.0003589,14]
[354602372,1740595848529,-500.0,0.0003589,14]
[354602374,1740595848539,-500.0,0.0003589,14]
[354602376,1740595848548,-500.0,0.0003589,14]
[354602378,1740595848558,-500.0,0.0003589,14]
[354602380,1740595848569,-670.19,0.0003589,14]
[354602382,1740595848579,-500.0,0.0003589,14]
[354602384,1740595848588,-500.0,0.0003589,14]
[354602386,1740595848598,-500.0,0.0003589,14]
[354602388,1740595848607,-300.0,0.0003589,14]
[354602390,1740595848617,-1844.05,0.0003589,14]
[354602392,1740595848627,-500.0,0.0003589,14]
[354602394,1740595848637,-322.03241137,0.0003589,14]
[354602396,1740595848647,-747.92,0.0003589,14]
[354602398,1740595848656,-835.83,0.0003589,14]
[354602400,1740595848666,-1533.87,0.0003589,14]
[354602402,1740595848676,-738.6,0.0003589,14]
[354602404,1740595848685,-1414.25,0.0003589,14]
[354602406,1740595848695,-865.08,0.0003589,14]
[354602408,1740595848705,-500.0,0.0003589,14]
[354602411,1740595848715,-633.98,0.0003589,14]
[354602413,1740595848725,-600.33,0.0003589,14]
[354602415,1740595848735,-500.0,0.0003589,14]
[354602417,1740595848744,-500.0,0.0003589,14]
[354602419,1740595848754,-500.0,0.0003589,14]
[354602421,1740595848764,-580.36,0.0003589,14]
[354602423,1740595848774,-742.35,0.0003589,14]
[354602425,1740595848786,-500.0,0.0003589,14]
[354602427,1740595848796,-732.49,0.0003589,14]
[354602429,1740595848806,-500.0,0.0003589,14]
[354602431,1740595848818,-527.1,0.0003589,14]
[354602433,1740595848829,-500.0,0.0003589,14]
[354602435,1740595848840,-500.0,0.0003589,14]
[354602437,1740595848851,-935.03,0.0003589,14]
[354602439,1740595848862,-500.0,0.0003589,14]
[354602441,1740595848873,-543.41,0.0003589,14]
[354602444,1740595848884,-500.0,0.0003589,14]
[354602446,1740595848895,-500.0,0.0003589,14]
[354602448,1740595848904,-500.0,0.0003589,14]
[354602450,1740595848914,-581.31,0.0003589,14]
[354602452,1740595848925,-500.0,0.0003589,14]
[354602454,1740595848936,-500.0,0.0003589,14]
[354602456,1740595848947,-689.42,0.0003589,14]
[354602458,1740595848961,-689.49,0.0003589,14]
[354602460,1740595848972,-744.35,0.0003589,14]